bitfinex-derivatives/quotes_SOLF0:USTF0_20240823
["timestamp","ask_amount","ask_price","bid_price","bid_amount"]
[1724396082424,3.4302,145.74,145.73,7.37]
[1724396083327,3.47475167,145.75,145.73,7.37]
[1724396084624,3.4301,145.74,145.73,7.37]
[1724396085128,3.4304,145.73,145.72,0.04596936]
[1724396085634,1.95430064,145.72,145.68,7.37]
[1724396085823,3.4304,145.73,145.7,7.37]
[1724396086023,3.4304,145.73,145.71,1.8315216]
[1724396086434,3.48197198,145.73,145.71,1.8315216]
[1724396087721,3.4306,145.72,145.71,1.8315216]
[1724396087921,0.05157198,145.73,145.71,1.8315216]
[1724396088332,0.1683384,145.71,145.7,7.37]
[1724396088532,3.48207198,145.73,145.7,7.2016616]
[1724396089825,3.48207198,145.73,145.71,7.37]
[1724396090030,0.05157198,145.73,145.71,7.37]
[1724396090832,3.48207198,145.73,145.71,7.37]
[1724396091429,3.4306,145.72,145.71,7.37]
[1724396091728,0.05157198,145.73,145.71,7.37]
[1724396092335,3.48207198,145.73,145.71,7.37]
[1724396092728,3.48207198,145.73,145.7,7.37]
[1724396097434,3.48207198,145.73,145.71,7.37]
[1724396097926,0.05157198,145.73,145.71,7.37]
[1724396099031,0.05157198,145.73,145.7,7.37]
[1724396099730,3.48207198,145.73,145.7,7.37]
[1724396100433,3.48207198,145.73,145.71,3.78148751]
[1724396100633,3.48207198,145.73,145.7,7.37]
[1724396100831,3.48207198,145.73,145.71,3.7815687]
[1724396101037,3.48207198,145.73,145.7,7.37]
[1724396101635,3.48207198,145.73,145.71,3.78164298]
[1724396101836,3.48207198,145.73,145.7,7.37]
[1724396102138,0.05157198,145.73,145.71,3.78173375]
[1724396102335,7.37,145.72,145.66,7.37]
[1724396102538,0.04990161,145.7,145.67,3.78461493]
[1724396102734,0.04990161,145.7,145.65,7.37]
[1724396103237,3.4314,145.69,145.65,5.37082]
[1724396103830,7.41990161,145.7,145.65,5.37082]
[1724396104032,7.41990161,145.7,145.65,3.3711]
[1724396104631,7.41990161,145.7,145.63,7.37]
[1724396104832,3.4316,145.68,145.63,7.37]
[1724396105037,0.04695755,145.67,145.63,7.37]
[1724396105639,3.432,145.66,145.63,7.37]
[1724396106035,0.04695755,145.67,145.63,7.37]
[1724396106742,3.47885755,145.67,145.63,7.37]
[1724396108345,3.432,145.66,145.64,7.37]
[1724396110244,3.4322,145.65,145.62,7.37]
[1724396111440,3.4321,145.66,145.62,7.37]
[1724396113441,3.4321,145.66,145.63,7.37]
[1724396114348,3.4321,145.66,145.64,3.78839401]
[1724396114539,3.4321,145.66,145.63,7.37]
[1724396114842,3.4321,145.66,145.64,3.78839401]
[1724396115147,3.4321,145.66,145.63,7.37]
[1724396115345,3.4321,145.66,145.64,3.7885246]
[1724396115545,3.4321,145.66,145.63,7.37]
[1724396115938,3.4321,145.66,145.64,3.78854207]
[1724396116142,3.47885755,145.67,145.63,7.37]
[1724396116438,3.47885755,145.67,145.64,3.78839401]
[1724396116644,3.47885755,145.67,145.63,7.37]
[1724396116836,3.47885755,145.67,145.64,3.78856058]
[1724396117038,3.47885755,145.67,145.63,7.37]
[1724396117238,3.47885755,145.67,145.64,3.7885632]
[1724396117443,3.47885755,145.67,145.63,7.37]
[1724396117643,3.47885755,145.67,145.64,3.78801793]
[1724396117844,3.47885755,145.67,145.63,7.37]
[1724396118147,3.432,145.66,145.64,3.78801793]
[1724396118340,3.432,145.66,145.63,7.37]
[1724396118537,3.432,145.66,145.64,3.78791059]
[1724396118740,3.432,145.66,145.63,7.37]
[1724396119145,3.432,145.66,145.64,3.78854974]
[1724396119341,3.432,145.66,145.62,7.37]
[1724396119543,3.432,145.66,145.63,3.78866575]
[1724396119745,3.432,145.66,145.62,7.37]
[1724396119943,3.432,145.66,145.63,3.78868549]
[1724396120142,3.432,145.66,145.64,3.78845222]
[1724396120344,3.432,145.66,145.62,7.37]
[1724396120540,3.432,145.66,145.63,3.78834002]
[1724396120744,3.432,145.66,145.64,3.78834002]
[1724396120945,3.432,145.66,145.62,7.37]
[1724396121144,3.4323,145.65,145.63,3.78891725]
[1724396121349,3.4323,145.65,145.62,7.37]
[1724396121546,3.4323,145.65,145.63,3.78914356]
[1724396121946,3.4323,145.65,145.62,7.37]
[1724396122141,3.4323,145.65,145.63,3.78917343]
[1724396122351,3.4321,145.66,145.62,7.37]
[1724396122646,3.4321,145.66,145.63,3.78857077]
[1724396122839,3.4321,145.66,145.62,7.37]
[1724396123145,0.04695755,145.67,145.65,7.37]
[1724396124340,3.47875755,145.67,145.65,7.37]
[1724396124544,3.47875755,145.67,145.64,7.37]
[1724396125545,3.4321,145.66,145.57,2.712]
[1724396125745,7.41695755,145.67,145.61,7.37]
[1724396126052,7.41695755,145.67,145.62,3.78773804]
[1724396126247,3.4322,145.66,145.62,3.78773804]
[1724396126447,3.4322,145.66,145.63,7.37]
[1724396126643,3.47884949,145.66,145.63,7.37]
[1724396127247,0.04664949,145.66,145.64,7.37]
[1724396128251,3.47864949,145.66,145.63,7.37]
[1724396128456,0.04664949,145.66,145.64,3.78762096]
[1724396128757,0.04664949,145.66,145.65,7.37]
[1724396129145,3.4312,145.7,145.65,11.15692122]
[1724396129341,3.4312,145.7,145.68,7.37]
[1724396130141,3.47809877,145.7,145.68,7.4174468]
[1724396130546,3.47809877,145.7,145.68,0.0474468]
[1724396131851,3.4313,145.69,145.68,0.0474468]
[1724396134351,3.47799877,145.7,145.68,0.0474468]
[1724396140556,1.9528332,145.68,145.67,7.37]
[1724396140757,1.95283321,145.67,145.66,7.37]
[1724396140955,3.4313,145.69,145.66,9.20256764]
[1724396141156,3.4313,145.69,145.66,5.41716679]
[1724396141656,3.47869596,145.69,145.66,5.41716679]
[1724396142560,0.04739596,145.69,145.66,5.41716679]
[1724396144359,3.47869596,145.69,145.66,5.41716679]
[1724396145762,0.04739596,145.69,145.58,1.339]
[1724396145960,0.05124175,145.65,145.63,7.37]
[1724396146163,0.05124175,145.65,145.64,3.78695286]
[1724396146858,0.05124175,145.65,145.62,7.37]
[1724396147060,0.05124175,145.65,145.63,3.78695286]
[1724396147266,0.05124175,145.65,145.64,3.78695286]
[1724396148461,3.48344175,145.65,145.64,3.78695286]
[1724396149260,3.4327,145.64,145.62,7.37]
[1724396149461,2.0008,145.62,145.6,3.35474864]
[1724396149657,3.4327,145.64,145.61,3.7889361]
[1724396149859,3.4327,145.64,145.61,5.5770768]
[1724396150061,3.4327,145.64,145.62,3.7889407]
[1724396150255,3.4327,145.64,145.61,1.7881361]
[1724396150466,3.4327,145.64,145.62,3.78964708]
[1724396150761,3.4327,145.64,145.6,10.88257896]
[1724396150962,3.4327,145.64,145.6,7.37]
[1724396151159,3.4327,145.63,145.6,7.37]
[1724396151462,3.4327,145.63,145.58,3.50022643]
[1724396151667,0.05117654,145.62,145.59,7.37]
[1724396152062,3.48417654,145.62,145.58,3.41135685]
[1724396152268,3.48417654,145.62,145.59,7.37]
[1724396152661,0.05117654,145.62,145.59,7.37]
[1724396153057,0.05117654,145.62,145.54,2.6431]
[1724396153366,0.05117654,145.62,145.57,5.36835]
[1724396154963,3.4333,145.61,145.57,5.36835]
[1724396155365,0.05117654,145.62,145.57,5.36835]
[1724396155562,7.42117654,145.62,145.56,7.37]
[1724396155762,7.37,145.6,145.52,1.368]
[1724396156069,0.04367288,145.57,145.55,7.37]
[1724396156661,0.04367288,145.57,145.56,7.37]
[1724396158666,0.04367288,145.57,145.55,7.37]
[1724396158875,0.04367288,145.57,145.56,7.37]
[1724396160270,7.37,145.64,145.56,7.37]
[1724396160466,7.37,145.64,145.6,7.37]
[1724396161070,3.4327,145.63,145.6,7.37]
[1724396161268,0.05250011,145.63,145.6,7.41367288]
[1724396162173,0.05250011,145.63,145.61,7.37]
[1724396163376,0.05250011,145.63,145.6,0.04367288]
[1724396163377,3.48530011,145.63,145.6,0.04367288]
[1724396165474,3.4331,145.62,145.6,0.04367288]
[1724396167968,3.433,145.62,145.6,0.04367288]
[1724396168677,3.4332,145.61,145.6,0.04367288]
[1724396172785,0.05250011,145.63,145.6,0.04367288]
[1724396172984,0.05250011,145.63,145.6,7.41367288]
[1724396175382,3.48520011,145.63,145.6,7.41367288]
[1724396175982,3.48520011,145.63,145.6,0.04367288]
[1724396178687,7.42250011,145.63,145.6,0.04367288]
[1724396179880,3.433,145.62,145.6,0.04367288]
[1724396185496,3.48530011,145.63,145.6,7.41367288]
[1724396197600,0.05250011,145.63,145.6,7.41367288]
[1724396197799,0.05250011,145.63,145.61,7.37]
[1724396199309,0.05250011,145.63,145.62,7.37]
[1724396200306,8.6707,145.7,145.62,7.37]
[1724396200615,8.6707,145.7,145.64,7.37]
[1724396201208,0.04730265,145.68,145.66,0.04806963]
[1724396204413,3.47890265,145.68,145.66,0.04806963]
[1724396204608,0.04730265,145.68,145.66,0.04806963]
[1724396204816,3.4318,145.67,145.66,0.04806963]
[1724396206916,3.47900265,145.68,145.66,0.04806963]
[1724396207317,0.04730265,145.68,145.66,0.04806963]
[1724396207913,3.47890265,145.68,145.66,0.04806963]
[1724396209715,3.4318,145.67,145.66,0.04806963]
[1724396210315,0.26954037,145.66,145.62,7.37]
[1724396210611,3.4318,145.67,145.64,5.40103963]
[1724396211219,3.47944944,145.67,145.64,5.44914299]
[1724396213218,0.04764944,145.67,145.64,5.44914299]
[1724396214823,3.47944944,145.67,145.64,5.44914299]
[1724396216117,0.04764944,145.67,145.64,5.44914299]
[1724396216320,0.04764944,145.67,145.65,7.37]
[1724396219226,3.47954944,145.67,145.65,7.37]
[1724396219619,0.04764944,145.67,145.65,7.37]
[1724396223116,3.47954944,145.67,145.64,0.04810336]
[1724396223318,3.47954944,145.67,145.64,6.41739336]
[1724396223520,3.47954944,145.67,145.6,1.3802]
[1724396223717,3.47954944,145.67,145.64,7.37]
[1724396223915,3.47954944,145.67,145.6,1.3802]
[1724396224115,0.51928,145.6,145.59,2.597]
[1724396224321,0.0469265,145.61,145.59,9.44772]
[1724396224522,3.4323,145.65,145.59,2.07772]
[1724396224721,3.4323,145.65,145.62,7.37]
[1724396225026,0.04962943,145.63,145.62,7.37]
[1724396225227,0.04962943,145.63,145.6,7.37]
[1724396225626,0.04962943,145.63,145.6,5.36945]
[1724396225821,3.48242943,145.63,145.6,1.3694]
[1724396226828,0.04962943,145.63,145.6,1.3694]
[1724396228525,0.04962943,145.63,145.62,7.37]
[1724396231631,0.04962943,145.63,145.61,7.37]
[1724396231827,3.48242943,145.63,145.61,7.37]
[1724396232134,3.48242943,145.63,145.61,5.3689]
[1724396237136,3.433,145.62,145.6,7.37]
[1724396237840,3.433,145.62,145.6,10.71959769]
[1724396240137,3.433,145.62,145.6,3.34959769]
[1724396240434,3.433,145.62,145.6,7.37]
[1724396240639,3.433,145.62,145.6,10.79990567]
[1724396243635,3.48242943,145.63,145.6,10.79990567]
[1724396244041,3.48242943,145.63,145.6,3.42990567]
[1724396244243,3.48242943,145.63,145.6,7.37]
[1724396244439,3.48242943,145.63,145.6,10.78858142]
[1724396245338,0.04962943,145.63,145.6,10.78858142]
[1724396247442,3.48232943,145.63,145.6,3.41858142]
[1724396247648,3.48232943,145.63,145.6,7.37]
[1724396247943,3.48232943,145.63,145.6,10.74636701]
[1724396248246,7.41962943,145.63,145.57,7.37]
[1724396248545,3.4335,145.6,145.58,3.37533742]
[1724396248846,0.05160545,145.61,145.54,1.3994]
[1724396249050,0.60228,145.54,145.53,1.3047]
[1724396249345,0.04706969,145.55,145.53,8.07242]
[1724396249534,0.05133364,145.55,145.54,7.37]
[1724396250443,3.4335,145.6,145.54,7.37]
[1724396250740,3.4335,145.6,145.57,7.37]
[1724396251539,3.47936874,145.6,145.57,7.41533314]
[1724396252736,0.04586874,145.6,145.57,7.41533314]
[1724396252935,0.04586874,145.6,145.59,7.37]
[1724396253741,3.47926874,145.6,145.57,0.04533314]
[1724396253940,3.47926874,145.6,145.58,7.37]
[1724396254750,0.04586874,145.6,145.58,7.37]
[1724396258749,0.04586874,145.6,145.57,0.04533314]
[1724396259048,3.47936874,145.6,145.57,7.41533314]
[1724396259650,3.47936874,145.6,145.57,0.04533314]
[1724396260148,3.47936874,145.6,145.57,7.41533314]
[1724396261553,0.04586874,145.6,145.57,7.41533314]
[1724396261752,0.04586874,145.6,145.58,7.37]
[1724396263743,3.47936874,145.6,145.57,7.41533314]
[1724396265945,3.47936874,145.6,145.57,5.41474314]
[1724396267354,3.4337,145.59,145.52,1.3084]
[1724396267549,2.04389669,145.57,145.52,1.3084]
[1724396267750,0.04430669,145.57,145.55,5.37041]
[1724396267954,0.04430669,145.57,145.56,7.37]
[1724396278356,0.04430669,145.57,145.52,1.3084]
[1724396278557,0.04430669,145.57,145.56,7.37]
[1724396279065,0.04430669,145.57,145.52,1.3084]
[1724396279266,0.04430669,145.57,145.55,7.37]
[1724396282160,0.04430669,145.57,145.5,3.35084983]
[1724396282362,0.04430669,145.57,145.52,7.37]
[1724396283566,3.4347,145.55,145.52,7.37]
[1724396284969,3.4345,145.56,145.52,7.37]
[1724396288170,3.4346,145.55,145.52,7.37]
[1724396288475,3.4346,145.55,145.51,7.37]
[1724396288667,0.05217764,145.54,145.51,7.37]
[1724396289068,0.05217764,145.54,145.48,1.3737]
[1724396289268,3.4352,145.53,145.45,1.3305]
[1724396289573,0.04848619,145.5,145.48,3.42882]
[1724396289768,0.04848619,145.5,145.49,7.37]
[1724396289968,0.04848619,145.5,145.49,10.87218443]
[1724396290771,0.04848619,145.5,145.49,10.57120443]
[1724396291276,0.04848619,145.5,145.49,8.87178443]
[1724396293971,1.99959,145.49,145.48,7.37]
[1724396294173,0.04848619,145.5,145.48,5.37041]
[1724396294576,0.04848619,145.5,145.49,7.37]
[1724396295582,0.04848619,145.5,145.47,3.46718687]
[1724396295876,0.04848619,145.5,145.48,7.37]
[1724396296084,0.04848619,145.5,145.43,29.48]
[1724396296085,1.99958,145.48,145.47,7.37]
[1724396296277,3.48710431,145.5,145.47,5.37042]
[1724396296479,3.48710431,145.5,145.45,3.4808208]
[1724396296480,0.05120431,145.5,145.45,3.4808208]
[1724396296678,0.05120431,145.5,145.45,7.37]
[1724396297080,0.05120431,145.5,145.45,3.36964]
[1724396297081,3.4364,145.48,145.45,3.36964]
[1724396297279,3.4364,145.48,145.45,1.37074]
[1724396297481,3.4364,145.48,145.44,3.48906431]
[1724396297679,3.4364,145.48,145.45,7.37]
[1724396297883,3.4365,145.47,145.44,7.37]
[1724396298185,0.04913345,145.47,145.44,5.36835]
[1724396298886,2.0015,145.44,145.43,7.37]
[1724396299074,0.04730857,145.45,145.43,5.3685]
[1724396299279,0.04512897,145.45,145.43,5.3685]
[1724396301184,0.04512897,145.45,145.42,3.4376]
[1724396301890,0.04512897,145.45,145.44,7.37]
[1724396303094,0.04512897,145.45,145.44,10.8072]
[1724396307492,0.04512897,145.45,145.44,14.28784265]
[1724396310396,3.4357,145.51,145.44,10.85064265]
[1724396310592,1.3793,145.53,145.48,7.37]
[1724396311395,3.4358,145.51,145.49,0.04586671]
[1724396312898,3.4358,145.5,145.49,0.04586671]
[1724396323301,0.04348154,145.52,145.49,7.41586671]
[1724396323509,0.04348154,145.52,145.51,7.37]
[1724396332015,0.04348154,145.52,145.49,0.04586671]
[1724396332713,3.47878154,145.52,145.49,0.04586671]
[1724396333509,3.4356,145.51,145.49,0.04586671]
[1724396336813,1.96128329,145.49,145.32,45.58720746]
[1724396337114,3.4358,145.5,145.46,3.40954671]
[1724396337614,3.436,145.49,145.46,3.40954671]
[1724396337813,0.04680571,145.49,145.46,3.40954671]
[1724396341716,0.04680571,145.49,145.48,7.37]
[1724396346920,3.48280571,145.49,145.44,3.39426398]
[1724396347117,3.48280571,145.49,145.47,7.37]
[1724396347422,3.4798795,145.49,145.47,7.37]
[1724396350221,0.0438795,145.49,145.47,7.37]
[1724396350431,0.0438795,145.49,145.48,7.37]
[1724396354222,3.4798795,145.49,145.48,7.37]
[1724396356129,3.4798795,145.49,145.47,7.37]
[1724396356723,3.4798795,145.49,145.43,29.48]
[1724396356925,3.4798795,145.49,145.46,7.37]
[1724396357127,3.48847071,145.49,145.46,7.37]
[1724396358129,3.48847071,145.49,145.48,7.37]
[1724396358526,0.05247071,145.49,145.48,7.37]
[1724396359524,2.5999,145.54,145.48,7.37]
[1724396359718,2.5999,145.54,145.47,0.04448002]
[1724396359719,2.5999,145.54,145.52,7.37]
[1724396359925,8.7608,145.58,145.52,7.37]
[1724396360122,1.3908,145.58,145.52,7.37]
[1724396360533,3.4347,145.55,145.54,0.04790482]
[1724396365328,3.47834337,145.56,145.54,7.41790482]
[1724396367336,0.04394337,145.56,145.54,7.41790482]
[1724396368032,3.47834337,145.56,145.54,7.41790482]
[1724396368842,0.04394337,145.56,145.54,7.41790482]
[1724396369439,3.47834337,145.56,145.54,7.41790482]
[1724396370340,0.04394337,145.56,145.54,7.41790482]
[1724396370836,3.47834337,145.56,145.54,7.41790482]
[1724396371535,3.47834337,145.56,145.54,0.04790482]
[1724396375946,3.4346,145.55,145.54,0.04790482]
[1724396378845,0.04394337,145.56,145.54,7.41790482]
[1724396381251,3.47834337,145.56,145.54,7.41790482]
[1724396384754,0.04394337,145.56,145.54,7.41790482]
[1724396388249,0.04394337,145.56,145.55,7.37]
[1724396392554,0.04394337,145.56,145.54,0.04790482]
[1724396392753,0.04394337,145.56,145.55,7.37]
[1724396401163,3.434,145.58,145.55,7.37]
[1724396401367,1.399,145.62,145.57,7.37]
[1724396401664,1.399,145.62,145.59,7.37]
[1724396401965,3.4334,145.6,145.59,7.37]
[1724396402564,0.05132139,145.61,145.59,7.37]
[1724396404265,1.3679,145.66,145.59,7.37]
[1724396404266,3.4325,145.64,145.59,7.37]
[1724396404469,3.4325,145.64,145.63,7.37]
[1724396404859,3.4325,145.64,145.62,7.37]
[1724396405066,3.4325,145.64,145.58,29.48]
[1724396405264,0.04967003,145.62,145.6,0.05241855]
[1724396405466,0.04967003,145.62,145.6,7.42241855]
[1724396405866,0.04967003,145.62,145.6,0.05241855]
[1724396406061,0.04967003,145.62,145.54,3.3501781]
[1724396406062,1.94881145,145.6,145.54,3.3501781]
[1724396406264,7.37,145.62,145.5,29.48]
[1724396406463,3.4336,145.6,145.56,3.42173855]
[1724396406665,3.4336,145.6,145.57,7.37]
[1724396407166,3.48222839,145.6,145.57,7.42038606]
[1724396410971,0.04862839,145.6,145.57,0.05038606]
[1724396411476,1.95171394,145.57,145.55,7.37]
[1724396411676,3.4339,145.58,145.55,5.41828606]
[1724396411974,1.2999,145.61,145.57,7.37]
[1724396412583,0.04611277,145.6,145.58,0.04645245]
[1724396412977,0.04611277,145.6,145.58,7.41645245]
[1724396413481,3.4337,145.59,145.58,7.41645245]
[1724396413979,3.4337,145.59,145.58,0.04645245]
[1724396417581,3.47961277,145.6,145.58,7.41645245]
[1724396418779,3.4337,145.59,145.58,7.41645245]
[1724396418981,3.4337,145.59,145.58,0.04645245]
[1724396432095,3.4344,145.56,145.54,7.37]
[1724396433289,3.48592704,145.56,145.54,7.37]
[1724396448602,3.48592704,145.56,145.55,7.37]
[1724396449904,3.48592704,145.56,145.5,29.48]
[1724396449905,3.48592704,145.56,145.54,7.37]
[1724396453704,0.05152704,145.56,145.55,7.37]
[1724396456406,3.4337,145.59,145.55,7.37]
[1724396456604,3.4337,145.59,145.54,3.47251964]
[1724396456605,3.4337,145.59,145.57,7.37]
[1724396457311,3.4335,145.6,145.57,7.37]
[1724396457506,0.05058637,145.59,145.57,0.05039367]
[1724396457701,0.05058637,145.59,145.58,7.37]
[1724396457906,0.05058637,145.59,145.58,11.15243867]
[1724396459603,0.05058637,145.59,145.58,7.37]
[1724396460015,0.05058637,145.59,145.58,11.15169218]
[1724396460216,2.6339,145.65,145.58,11.15169218]
[1724396460418,2.6339,145.65,145.6,7.37]
[1724396460614,2.6339,145.65,145.61,3.78169218]
[1724396460811,2.6339,145.65,145.62,3.78169218]
[1724396461010,2.6339,145.65,145.6,7.37]
[1724396461211,2.6339,145.65,145.61,3.78086129]
[1724396461514,0.05241275,145.64,145.62,3.78086129]
[1724396461713,3.4329,145.62,145.61,0.04630015]
[1724396462212,3.4329,145.62,145.61,3.82704396]
[1724396464519,7.42241275,145.64,145.61,11.19704396]
[1724396464520,0.05241275,145.64,145.61,11.19704396]
[1724396464721,0.05241275,145.64,145.62,3.78074381]
[1724396464917,3.4329,145.63,145.61,7.41630015]
[1724396465123,3.4329,145.63,145.62,3.78039704]
[1724396466118,3.4329,145.63,145.62,1.78026704]
[1724396467017,7.42241275,145.64,145.61,0.04630015]
[1724396467018,3.4329,145.62,145.61,0.04630015]
[1724396468421,1.99932,145.61,145.51,17.70701574]
[1724396468725,7.37,145.62,145.55,5.37068]
[1724396469125,3.4336,145.6,145.55,5.37068]
[1724396469525,0.04784773,145.59,145.57,7.37]
[1724396471233,0.04784773,145.59,145.56,0.0481043]
[1724396471430,1.9538657,145.56,145.54,7.37]
[1724396471628,0.04784773,145.59,145.54,5.4161343]
[1724396472027,3.4341,145.58,145.54,5.4161343]
[1724396472223,7.41784773,145.59,145.54,5.4161343]
[1724396472431,7.41784773,145.59,145.46,228.44007541]
[1724396472733,0.0444227,145.55,145.53,7.37]
[1724396474435,0.0444227,145.55,145.46,3.44007541]
[1724396474635,0.0444227,145.55,145.53,7.37]
[1724396475034,0.0444227,145.55,145.46,3.44007541]
[1724396475337,0.0444227,145.55,145.53,7.37]
[1724396475838,0.0444227,145.55,145.52,7.37]
[1724396477236,3.4349,145.54,145.51,7.37]
[1724396479438,3.4791227,145.55,145.51,7.37]
[1724396479840,0.0444227,145.55,145.51,7.37]
[1724396480041,3.4348,145.54,145.51,7.37]
[1724396481136,3.4791227,145.55,145.51,7.37]
[1724396481738,3.4791227,145.55,145.52,7.37]
[1724396481941,3.4791227,145.55,145.53,7.37]
[1724396482142,0.0444227,145.55,145.53,7.37]
[1724396483244,2.7008,145.6,145.54,3.51410091]
[1724396483547,2.7008,145.6,145.57,7.37]
[1724396483740,3.4338,145.59,145.57,7.37]
[1724396484042,2.7008,145.6,145.57,7.37]
[1724396484347,3.4338,145.59,145.57,0.05040135]
[1724396484847,10.12167613,145.6,145.57,0.05040135]
[1724396485046,3.4339,145.58,145.57,0.05040135]
[1724396489047,3.4337,145.59,145.57,0.05040135]
[1724396492150,3.48437613,145.6,145.57,7.42040135]
[1724396494252,0.05087613,145.6,145.59,7.37]
[1724396496951,0.05087613,145.6,145.57,7.42040135]
[1724396497151,3.48427613,145.6,145.57,7.42040135]
[1724396500850,3.4337,145.59,145.57,7.42040135]
[1724396501254,0.05087613,145.6,145.57,7.42040135]
[1724396502359,3.48437613,145.6,145.57,7.42040135]
[1724396502559,0.05087613,145.6,145.59,7.37]
[1724396504554,3.48427613,145.6,145.57,0.05040135]
[1724396504756,3.48427613,145.6,145.58,7.37]
[1724396505358,3.48427613,145.6,145.57,0.05040135]
[1724396505560,3.48427613,145.6,145.57,7.42040135]
[1724396506159,3.48427613,145.6,145.58,7.37]
[1724396507059,0.05087613,145.6,145.58,7.37]
[1724396507863,0.05087613,145.6,145.59,7.37]
[1724396508558,3.48427613,145.6,145.59,7.37]
[1724396510264,3.48427613,145.6,145.58,7.37]
[1724396515771,0.05087613,145.6,145.58,7.37]
[1724396516164,0.05087613,145.6,145.59,7.37]
[1724396516569,1.2841,145.65,145.59,7.37]
[1724396516769,7.37,145.68,145.63,7.37]
[1724396517164,3.4327,145.64,145.63,7.37]
[1724396519369,3.4785942,145.65,145.63,7.37]
[1724396519877,0.0462942,145.65,145.64,7.37]
[1724396520378,0.0462942,145.65,145.63,7.37]
[1724396520672,0.0462942,145.65,145.62,7.42091969]
[1724396521269,3.4325,145.64,145.62,0.05091969]
[1724396525178,3.4785942,145.65,145.62,7.42091969]
[1724396525480,0.0462942,145.65,145.64,7.37]
[1724396528773,0.0462942,145.65,145.63,7.37]
[1724396533583,3.4784942,145.65,145.63,7.37]
[1724396534381,3.4784942,145.65,145.63,7.34377]
[1724396535583,1.99986,145.63,145.62,0.05091969]
[1724396535772,1.94894031,145.62,145.61,7.37]
[1724396535971,3.4325,145.64,145.61,5.42105969]
[1724396536480,3.4785942,145.65,145.61,5.42105969]
[1724396536879,3.4785942,145.65,145.62,0.04598478]
[1724396537080,3.4325,145.64,145.62,0.04598478]
[1724396539279,3.4786942,145.65,145.63,7.37]
[1724396540281,0.0462942,145.65,145.63,7.37]
[1724396540585,0.0462942,145.65,145.64,7.37]
[1724396542285,3.4784942,145.65,145.64,7.37]
[1724396542488,0.0462942,145.65,145.64,7.37]
[1724396543676,0.0462942,145.65,145.63,7.37]
[1724396543879,0.0462942,145.65,145.62,7.41598478]
[1724396544078,3.4786942,145.65,145.62,7.41598478]
[1724396544485,0.0462942,145.65,145.64,7.37]
[1724396550481,3.4784942,145.65,145.64,7.37]
[1724396550682,0.0462942,145.65,145.64,7.37]
[1724396554397,0.0462942,145.65,145.62,3.40953488]
[1724396554597,0.0462942,145.65,145.64,7.37]
[1724396556401,2.6295,145.71,145.64,7.37]
[1724396556591,2.6295,145.71,145.68,7.37]
[1724396556997,3.4311,145.7,145.68,7.37]
[1724396557397,0.04742557,145.7,145.68,7.42279885]
[1724396559096,0.04742557,145.7,145.69,7.37]
[1724396560402,3.47842557,145.7,145.69,7.37]
[1724396562103,0.04742557,145.7,145.69,7.37]
[1724396562303,0.04742557,145.7,145.69,11.13229045]
[1724396564506,0.04742557,145.7,145.69,5.13461495]
[1724396564704,0.04742557,145.7,145.69,11.13229045]
[1724396564906,0.04742557,145.7,145.69,7.37]
[1724396571311,0.04742557,145.7,145.69,11.1315529]
[1724396573712,0.04742557,145.7,145.69,7.37]
[1724396573905,3.4305,145.73,145.72,7.37]
[1724396579809,3.4305,145.73,145.71,7.41346806]
[1724396580509,3.4306,145.72,145.71,7.41346806]
[1724396581912,3.4306,145.72,145.71,0.04346806]
[1724396586930,0.0447958,145.74,145.6,46.88869354]
[1724396587125,7.37,145.67,145.61,3.13303205]
[1724396587324,7.37,145.67,145.62,3.13303205]
[1724396587529,7.37,145.69,145.63,1.37239552]
[1724396588128,0.04356995,145.67,145.65,0.04370984]
[1724396588723,7.37,145.66,145.59,7.37]
[1724396588929,7.37,145.66,145.6,1.37301918]
[1724396589132,3.4329,145.62,145.61,1.37301918]
[1724396589333,7.37,145.64,145.58,1.37301918]
[1724396589537,7.37,145.63,145.59,1.37301918]